bitfinex/quotes_ETHUSD_20251031
["timestamp","ask_amount","ask_price","bid_price","bid_amount"]
[1761948389376,0.001,3869.4,3869.0,0.3501]
[1761948389676,0.001,3869.4,3869.3,0.3481]
[1761948389851,0.001,3869.4,3869.3,2.93254679]
[1761948390537,0.001,3869.4,3869.3,2.95839125]
[1761948390739,0.001,3869.4,3869.3,3.30649125]
[1761948391659,0.001,3869.4,3869.3,3.28064679]
[1761948391862,0.001,3869.4,3869.3,3.8699539]
[1761948392662,0.001,3869.4,3869.3,3.5218539]
[1761948392863,0.001,3869.4,3869.3,3.8699539]
[1761948394745,0.001,3869.4,3869.3,3.89579836]
[1761948398165,0.001,3869.7,3869.6,3.98392643]
[1761948398455,0.001,3869.7,3869.6,2.93234643]
[1761948398694,0.001,3869.7,3869.6,3.28044643]
[1761948399871,0.001,3869.7,3869.6,8.72697175]
[1761948400204,0.001,3869.7,3869.6,8.70112929]
[1761948400411,0.001,3869.7,3869.6,9.98177096]
[1761948400605,0.001,3869.7,3869.6,10.0853382]
[1761948401175,0.001,3869.7,3869.6,9.7372382]
[1761948401374,0.001,3869.7,3869.6,4.66465534]
[1761948401972,0.001,3869.7,3869.6,4.5610881]
[1761948402376,0.001,3869.7,3869.6,4.58693056]
[1761948405275,0.001,3869.7,3869.6,9.40255154]
[1761948405485,0.001,3869.7,3869.6,9.37670908]
[1761948406911,0.001,3869.7,3869.6,4.2129881]
[1761948407679,0.4906,3869.7,3869.5,0.49882224]
[1761948407878,0.4896,3869.6,3869.5,3.08308319]
[1761948408288,0.4896,3869.6,3869.5,0.49882224]
[1761948408513,0.001,3869.7,3869.6,2.58424643]
[1761948409177,0.001,3869.7,3869.6,2.93234643]
[1761948409383,0.4906,3869.7,3869.5,0.49882224]
[1761948409693,0.4896,3869.6,3869.5,0.49882224]
[1761948410201,0.9669,3869.6,3869.5,0.49882224]
[1761948411116,11.110731,3869.6,3869.5,0.49882224]
[1761948411284,12.7229762,3869.6,3869.5,0.49882224]
[1761948411984,2.9846492,3869.6,3869.5,0.49882224]
[1761948412284,12.595248,3869.6,3869.5,0.49882224]
[1761948412694,11.222844,3869.6,3869.5,0.49882224]
[1761948412897,0.001,3869.7,3869.6,2.58424643]
[1761948413108,0.001,3869.7,3869.6,3.28044643]
[1761948414006,0.001,3869.8,3869.7,2.58417965]
[1761948414217,0.001,3869.8,3869.7,9.81186266]
[1761948414425,0.001,3869.8,3869.7,9.78602087]
[1761948415314,0.001,3869.8,3869.7,10.91481765]
[1761948418407,0.001,3869.8,3869.7,12.41805256]
[1761948421324,0.001,3869.8,3869.7,12.54685256]
[1761948422448,0.001,3869.8,3869.7,4.7258548]
[1761948422817,0.001,3869.8,3869.7,3.38393456]
[1761948425659,0.001,3869.8,3869.7,3.40977635]
[1761948425947,0.001,3869.8,3869.7,3.38393456]
[1761948426124,0.001,3869.8,3869.7,3.40977635]
[1761948426767,0.001,3869.8,3869.7,3.38393456]
[1761948426952,0.001,3869.8,3869.7,4.63795666]
[1761948428964,0.001,3869.8,3869.7,4.66379845]
[1761948429370,0.001,3869.8,3869.7,4.63795666]
[1761948429672,0.001,3869.8,3869.7,4.66379845]
[1761948430443,0.001,3869.8,3869.7,6.06347845]
[1761948430641,0.001,3869.8,3869.7,6.03763666]
[1761948431835,1e-08,3870.2,3870.1,3.05901256]
[1761948432170,1e-08,3870.2,3870.1,9.97648708]
[1761948432361,1e-08,3870.2,3870.1,11.47912796]
[1761948432562,1e-08,3870.2,3870.1,11.95642796]
[1761948435471,1e-08,3870.2,3870.1,16.76869885]
[1761948435684,0.88249087,3871.6,3871.5,2.58297817]
[1761948435980,0.4773,3872.1,3871.6,2.58291145]
[1761948436178,0.4773,3872.1,3871.6,2.60874056]
[1761948437673,0.4807,3871.7,3871.6,2.60874056]
[1761948440852,0.005,3871.7,3871.6,2.60874056]
[1761948441182,0.005,3871.7,3871.6,3.88014575]
[1761948441959,0.4873,3871.7,3871.6,3.85431664]
[1761948443203,0.9866,3871.7,3871.6,2.58291145]
[1761948447003,0.9866,3871.7,3871.0,4.81227089]
[1761948447191,0.005,3871.7,3871.6,2.58291145]
[1761948447570,0.4873,3871.7,3871.6,2.58291145]
[1761948447758,0.9866,3871.7,3871.6,2.58291145]
[1761948449504,0.9876,3871.7,3871.6,2.58291145]
[1761948449706,0.4883,3871.7,3871.6,2.58291145]
[1761948449990,0.9876,3871.7,3871.6,2.58291145]
[1761948452790,0.9876,3871.7,3871.5,2.58291832]
[1761948453097,0.4481,3871.5,3871.4,2.58304489]
[1761948453460,0.9474,3871.5,3871.4,2.58304489]
[1761948455097,0.9474,3871.5,3870.9,4.81227089]
[1761948455286,0.4653,3871.4,3871.2,2.58317834]
[1761948455901,0.4653,3871.4,3870.9,4.81227089]
[1761948455902,0.4823,3871.3,3870.9,4.81227089]
[1761948456084,0.4817,3871.0,3870.9,2.58331418]
[1761948456284,0.4653,3871.4,3871.2,2.58313309]
[1761948456606,0.4653,3871.4,3871.1,2.58322822]
[1761948457101,0.4823,3871.2,3871.1,2.58322822]
[1761948457297,0.4823,3871.2,3870.9,2.5833184]
[1761948457461,0.4817,3871.0,3870.9,2.58337854]
[1761948459902,0.4817,3871.0,3870.9,7.39564943]
[1761948460204,0.9816,3871.0,3870.6,7.39578943]
[1761948460389,0.4481,3870.7,3870.6,7.39584319]
[1761948460589,0.006,3871.7,3871.0,2.58326657]
[1761948460789,0.5053,3871.7,3871.1,4.81227089]
[1761948461011,0.5053,3871.7,3870.8,4.81227089]
[1761948461306,0.4823,3871.0,3870.9,2.58337854]
[1761948461469,0.5053,3871.7,3870.9,2.58337854]
[1761948461669,0.4823,3871.0,3870.9,2.58337854]
[1761948461935,0.4823,3871.0,3870.9,3.58130067]
[1761948462079,0.4823,3871.0,3870.9,0.99792213]
[1761948462285,0.9816,3871.0,3870.9,0.99792213]
[1761948462484,0.9816,3871.0,3870.5,7.39589922]
[1761948462716,0.4423,3870.9,3870.5,7.39589922]
[1761948463024,0.4819,3870.6,3870.5,2.58364552]
[1761948463182,0.4819,3870.6,3870.5,0.99796954]
[1761948463521,0.4819,3870.6,3870.5,2.58364552]
[1761948464788,0.4819,3870.6,3870.4,2.58369602]
[1761948464789,0.9812,3870.6,3870.4,2.58369602]
[1761948464988,0.4993,3870.6,3870.4,2.58369602]
[1761948465329,0.006,3871.7,3871.6,4.73619545]
[1761948465330,1e-08,3871.7,3871.6,4.73619545]
[1761948465650,1e-08,3871.7,3871.6,2.93101145]
[1761948466615,1e-08,3871.7,3871.6,2.58291145]
[1761948466822,1e-08,3871.7,3870.5,0.99797929]
[1761948466823,0.48050001,3871.7,3870.8,5.41032937]
[1761948467029,0.4805,3871.5,3871.4,2.58304489]
[1761948467327,0.4805,3871.5,3871.2,2.58311393]
[1761948467529,0.4805,3871.3,3870.8,0.14034833]
[1761948467732,0.4805,3871.1,3871.0,2.5833118]
[1761948468626,0.9347,3871.1,3870.8,5.41032937]
[1761948468798,0.9347,3871.1,3871.0,2.5833118]
[1761948468993,0.9347,3871.1,3870.8,5.41032937]
[1761948469193,0.4805,3870.9,3870.8,7.99377465]
[1761948470319,0.4542,3871.3,3871.1,2.58321114]
[1761948470720,0.4805,3871.2,3871.1,2.58321114]
[1761948470904,0.4805,3871.2,3871.0,2.58326143]
[1761948471104,0.9347,3871.2,3871.0,2.58326143]
[1761948471425,0.4805,3871.1,3871.0,2.58326143]
[1761948474850,0.45420001,3871.7,3871.0,3.99164803]
[1761948475047,0.45420001,3871.7,3871.2,7.99345792]
[1761948475249,0.45420001,3871.7,3871.3,0.02583111]
[1761948475616,0.4805,3871.4,3871.3,0.02583111]
[1761948475803,0.4805,3871.4,3870.8,5.41032937]
[1761948476005,0.6626,3870.9,3870.4,5.41032937]
[1761948476206,0.4542,3870.8,3870.6,2.58357045]
[1761948476533,0.4542,3870.8,3870.6,2.58357636]
[1761948476741,0.4805,3870.7,3870.5,2.58363184]
[1761948477160,0.4805,3870.7,3870.6,2.58357877]
[1761948478860,0.4805,3870.7,3870.5,2.58362473]
[1761948479064,0.4542,3870.7,3870.5,2.58362473]
[1761948479229,0.4805,3870.6,3870.5,2.58362473]
[1761948480757,0.4805,3870.6,3870.5,2.58364552]
[1761948481262,0.9347,3870.6,3870.1,0.007]
[1761948481461,0.4805,3870.5,3870.2,2.58378401]
[1761948481661,0.9347,3870.5,3870.2,2.58378401]
[1761948482230,0.4805,3870.3,3870.1,0.007]
[1761948482430,0.4542,3870.4,3870.1,0.007]
[1761948482431,0.4542,3870.4,3870.3,2.58377903]
[1761948482669,0.4542,3870.7,3870.3,2.58377903]
[1761948482968,0.4805,3870.4,3870.2,2.58383974]
[1761948483536,0.1821,3870.9,3870.1,0.007]
[1761948483537,0.9347,3870.3,3870.1,0.007]
[1761948483762,0.4805,3870.2,3870.1,0.007]
[1761948484061,0.9347,3870.2,3870.1,0.007]
[1761948487262,1.33994771,3870.2,3870.1,0.007]
[1761948489535,0.9347,3870.2,3870.1,0.007]
[1761948490166,0.9347,3870.2,3870.1,2.59091256]
[1761948491167,0.9347,3870.2,3870.1,0.007]
[1761948492481,1.33994303,3870.2,3870.1,2.59091256]
[1761948492655,1.33994303,3870.2,3870.1,0.007]
[1761948496879,1.47393733,3870.2,3870.1,0.007]
[1761948502452,0.4805,3870.2,3870.1,0.007]
[1761948503377,0.6726,3870.9,3870.2,2.58379935]
[1761948503572,0.4905,3870.7,3870.1,0.03283912]
[1761948503772,0.4905,3870.7,3870.5,2.58363796]
[1761948504153,0.456,3870.6,3870.5,2.58363796]
[1761948504349,0.456,3870.6,3870.3,2.60957863]
[1761948504568,0.456,3870.6,3870.3,3.12962168]
[1761948504790,0.456,3870.6,3870.4,2.58370358]
[1761948505393,0.1821,3870.9,3870.5,0.02583645]
[1761948505593,0.55709965,3871.3,3870.5,0.02583645]
[1761948505594,0.4905,3871.3,3870.7,2.58346264]
[1761948505890,0.40521057,3871.1,3870.6,0.02583578]
[1761948506068,0.456,3870.7,3870.5,2.58363646]
[1761948506268,0.456,3870.7,3870.6,0.02583578]
[1761948506480,0.1835,3870.9,3870.1,0.007]
[1761948506679,0.456,3870.2,3870.1,0.007]
[1761948507078,0.9465,3870.2,3870.1,0.007]
[1761948512983,0.456,3870.2,3870.1,0.007]
[1761948513712,0.9465,3870.2,3870.1,0.007]
[1761948514673,0.456,3870.2,3870.1,0.007]
[1761948517202,0.9465,3870.2,3870.1,0.007]
[1761948517397,0.589004,3870.9,3870.1,0.4821]
[1761948517398,0.1835,3870.9,3870.1,0.4821]
[1761948517710,0.1835,3870.9,3870.2,0.02583845]
[1761948517711,0.4905,3870.8,3870.2,0.02583845]
[1761948518084,0.4905,3870.8,3870.2,2.60967577]
[1761948518412,0.4905,3870.8,3870.3,2.58376486]
[1761948518713,0.1835,3870.9,3870.4,0.02583712]
[1761948518881,0.1835,3870.9,3870.4,2.58370978]
[1761948519082,0.40521064,3870.7,3870.5,0.02583645]
[1761948519480,0.40521064,3870.7,3870.5,2.60946803]
[1761948519713,0.40521064,3870.7,3870.6,2.93167877]
[1761948520215,0.40521064,3870.7,3870.6,0.3481]
[1761948520419,0.40521064,3870.7,3870.5,0.51933081]
[1761948520728,0.456,3870.6,3870.3,2.58373274]
[1761948520927,0.456,3870.6,3870.1,0.134]
[1761948521082,0.4905,3870.5,3870.3,2.58374725]
[1761948521283,0.456,3870.4,3870.3,2.58374725]
[1761948521483,0.40521064,3870.7,3870.3,2.58374725]
[1761948521817,0.89571064,3870.7,3870.3,2.58374725]
[1761948522026,0.456,3870.4,3870.1,0.007]
[1761948522229,0.456,3870.2,3870.1,0.007]
[1761948522733,0.9465,3870.2,3870.1,0.007]
[1761948527044,0.9288,3870.2,3870.1,0.007]
[1761948534244,0.456,3870.2,3870.1,0.007]
[1761948534451,0.4728,3870.7,3870.1,0.007]
[1761948534647,0.878304,3870.8,3870.1,0.007]
[1761948535015,0.4728,3870.7,3870.1,0.007]
[1761948535713,0.4706,3870.2,3870.1,0.007]
[1761948536114,0.9434,3870.2,3870.1,0.007]
[1761948540622,11.23391,3870.2,3870.1,0.007]
[1761948540951,11.79210078,3870.2,3870.1,0.007]
[1761948541115,13.45302777,3870.2,3870.1,0.007]
[1761948542019,28.373888,3870.2,3870.1,0.007]
[1761948542238,28.00811745,3870.2,3870.1,0.007]
[1761948542457,25.09289242,3870.2,3870.1,0.007]
[1761948542771,27.67673821,3870.2,3870.1,0.007]
[1761948542937,32.12668421,3870.2,3870.1,0.007]
[1761948544063,32.47688621,3870.2,3870.1,0.007]
[1761948544223,33.17415595,3870.2,3870.1,0.007]
[1761948544634,32.96088595,3870.2,3870.1,0.007]
[1761948544836,14.95783995,3870.2,3870.1,0.007]
[1761948545035,34.15213795,3870.2,3870.1,0.007]
[1761948545251,32.91899395,3870.2,3870.1,0.007]
[1761948545674,32.55913495,3870.2,3870.1,0.007]
[1761948545976,42.08622421,3870.2,3870.1,0.007]
[1761948546136,26.86493342,3870.2,3870.1,0.007]
[1761948546342,26.95029007,3870.2,3870.1,0.007]
[1761948546572,25.88371107,3870.2,3870.1,0.007]
[1761948546879,14.31690607,3870.2,3870.1,0.007]
[1761948547034,30.75021007,3870.2,3870.1,0.007]
[1761948547676,30.50411807,3870.2,3870.1,0.007]
[1761948547861,29.64791207,3870.2,3870.1,0.007]
[1761948548065,28.45436979,3870.2,3870.1,0.007]
[1761948548977,29.54315179,3870.2,3870.1,0.007]
[1761948549682,28.83146879,3870.2,3870.1,0.007]
[1761948550056,28.94930379,3870.2,3870.1,0.007]
[1761948550244,29.29832644,3870.2,3870.1,0.007]
[1761948550977,2.98955009,3869.9,3869.8,0.002]
[1761948551177,47.13721269,3869.9,3869.8,0.002]
[1761948551378,47.94139193,3869.9,3869.8,0.002]
[1761948551755,46.48560493,3869.9,3869.8,0.002]
[1761948551939,46.60836393,3869.9,3869.8,0.002]
[1761948552167,48.44205611,3869.9,3869.8,0.002]
[1761948552395,46.49323211,3869.9,3869.8,0.002]
[1761948552589,45.26855511,3869.9,3869.8,0.002]
[1761948553108,49.77508411,3869.9,3869.8,0.002]
[1761948553278,42.64098911,3869.9,3869.8,0.002]
[1761948553971,45.05821311,3869.9,3869.8,0.002]
[1761948554171,45.73745081,3869.9,3869.8,0.002]
[1761948554372,46.14287571,3869.9,3869.8,0.002]
[1761948555191,46.98219671,3869.9,3869.8,0.002]
[1761948555391,46.07029771,3869.9,3869.8,0.002]
[1761948555573,45.14328901,3869.9,3869.8,0.002]
[1761948555997,1.805184,3869.7,3869.6,0.002]
[1761948556192,36.95373241,3869.6,3869.5,0.49882224]
[1761948556504,34.38949721,3869.5,3868.6,0.002]
[1761948556704,37.48632171,3869.5,3868.6,0.002]
[1761948556903,40.09783325,3869.5,3868.6,0.002]
[1761948557438,34.389564,3869.4,3868.6,0.002]
[1761948557601,36.55975667,3869.4,3868.6,0.002]
[1761948557927,36.04543346,3869.4,3868.6,0.002]
[1761948558103,38.61492864,3869.4,3868.6,0.002]
[1761948558307,46.15691164,3869.4,3868.6,0.002]
[1761948558504,44.93787764,3869.4,3868.6,0.002]
[1761948558723,56.11504681,3869.4,3868.6,0.002]
[1761948559111,52.75344885,3869.4,3868.6,0.002]
[1761948559535,2.99001759,3869.2,3868.6,0.002]
[1761948559693,41.84789756,3869.2,3868.6,0.002]
[1761948559898,41.40385943,3869.2,3868.6,0.002]
[1761948561525,41.80953145,3869.2,3868.6,0.002]
[1761948561721,31.86786045,3869.2,3868.6,0.002]
[1761948561898,30.2299641,3869.2,3868.6,0.002]
[1761948562097,13.33496908,3869.2,3868.6,0.002]
[1761948562305,28.04902791,3869.2,3868.6,0.002]
[1761948562513,27.21373591,3869.2,3868.6,0.002]
[1761948562737,18.69722508,3869.2,3868.6,0.002]
[1761948563156,25.75139269,3869.2,3868.6,0.002]
[1761948563392,53.91987314,3869.2,3868.6,0.002]
[1761948563743,4.38976439,3869.1,3868.6,0.002]
[1761948563974,22.067513,3868.7,3868.6,0.002]
[1761948564277,29.49497522,3868.7,3868.6,0.002]
[1761948564442,27.73209522,3868.7,3868.6,0.002]
[1761948564866,28.13762987,3868.7,3868.6,0.002]
[1761948565357,30.77851762,3868.7,3868.6,0.002]
[1761948565664,32.64193653,3868.7,3868.6,0.002]
[1761948566198,41.05860696,3868.7,3868.6,0.002]
[1761948566371,41.07107896,3868.7,3868.6,0.002]
[1761948567261,21.04204996,3868.7,3868.6,0.002]
[1761948567466,41.34439896,3868.7,3868.6,0.002]
[1761948567664,40.55886496,3868.7,3868.6,0.002]
[1761948567896,39.67547996,3868.7,3868.6,0.002]
[1761948568097,39.47147996,3868.7,3868.6,0.002]
[1761948568288,38.77718553,3868.7,3868.6,0.002]
[1761948568480,39.77311653,3868.7,3868.6,0.002]
[1761948568982,46.12911653,3868.7,3868.6,0.002]
[1761948569601,48.61847153,3868.7,3868.6,0.002]
[1761948569992,48.94985077,3868.7,3868.6,0.002]
[1761948570501,49.11000877,3868.7,3868.6,0.002]
[1761948570705,45.50551777,3868.7,3868.6,0.002]
[1761948571201,29.5711821,3868.7,3868.6,0.002]
[1761948571366,34.8141601,3868.7,3868.6,0.002]
[1761948572312,17.81335818,3868.7,3868.6,0.3501]
[1761948572609,19.37946443,3868.7,3868.6,0.6982]
[1761948573209,16.71940543,3868.7,3868.6,0.6982]
[1761948573508,17.30139265,3868.7,3868.6,0.6982]
[1761948574277,15.72385527,3868.7,3868.6,0.6982]
[1761948574678,17.85820927,3868.7,3868.6,0.6982]
[1761948574996,17.45267462,3868.7,3868.6,0.6982]
[1761948578314,17.85814666,3868.7,3868.6,0.6982]
[1761948579198,15.72379266,3868.7,3868.6,0.6982]
[1761948579391,15.31828866,3868.7,3868.6,0.6982]
[1761948581199,14.76147204,3868.7,3868.6,0.6982]
[1761948581399,15.31934731,3868.7,3868.6,0.6982]
[1761948582005,14.91387527,3868.7,3868.6,0.6982]
[1761948582177,14.356,3868.7,3868.6,0.6982]
[1761948583616,6.356,3868.7,3868.6,0.6982]
[1761948585414,6.76144902,3868.7,3868.6,0.6982]
[1761948586209,6.76144902,3868.7,3868.6,1.03632877]
[1761948587084,6.76144902,3868.7,3868.6,0.3501]
[1761948587284,6.76144902,3868.7,3868.6,0.6982]
[1761948595540,6.356,3868.7,3868.6,0.3501]
[1761948597034,6.356,3868.7,3868.6,0.6982]
[1761948598757,6.76142882,3868.7,3868.6,0.6982]
[1761948601533,0.40542882,3868.7,3868.6,3.69363983]
[1761948601766,0.001,3868.9,3868.8,2.58478081]
[1761948601924,0.001,3868.9,3868.8,3.30682861]
[1761948602325,0.001,3868.9,3868.8,8.7307624]
[1761948602659,0.001,3868.9,3868.8,9.48188016]
[1761948602960,0.001,3868.9,3868.8,5.30607837]
[1761948603146,0.001,3868.9,3868.8,1.47316556]
[1761948603545,0.001,3868.9,3868.8,4.05794637]
[1761948605868,0.001,3868.9,3868.8,4.08379417]
[1761948606839,0.001,3869.3,3868.8,4.08379417]
[1761948606840,0.001,3869.3,3869.2,2.58451359]
[1761948607065,0.001,3869.3,3869.2,8.89930388]
[1761948607270,0.001,3869.3,3869.2,9.22155875]
[1761948607452,0.001,3869.7,3869.2,9.32512197]
[1761948607652,0.001,3870.1,3870.0,2.58397932]
[1761948607837,0.001,3870.1,3870.0,8.3818529]
[1761948608037,0.001,3870.1,3870.0,9.8007052]
[1761948608343,0.001,3870.1,3870.0,9.90425448]
[1761948609477,0.40518591,3871.4,3870.6,2.58357877]
[1761948609639,0.40518591,3871.4,3870.6,8.72954834]
[1761948609980,0.40518591,3871.4,3870.6,8.70371256]
[1761948610184,0.40518591,3871.4,3870.6,9.84515056]
[1761948610350,0.40518591,3871.4,3870.6,4.42121677]
[1761948610535,0.40518591,3871.4,3870.6,4.07311677]
[1761948610536,0.4835,3871.3,3870.6,4.07311677]
[1761948610739,0.40518591,3871.4,3870.6,4.42121677]
[1761948611879,0.88868591,3871.4,3870.6,4.42121677]
[1761948612283,0.88868591,3871.4,3870.6,4.90471677]
[1761948613357,0.40518591,3871.4,3870.6,4.90471677]
[1761948614495,0.4835,3871.6,3870.6,4.90471677]
[1761948617384,0.40518158,3871.1,3870.6,4.90471677]
[1761948618283,0.40518158,3871.1,3870.6,1.973038]
[1761948618657,0.40518158,3871.1,3870.6,4.55661677]
[1761948619054,0.4616,3871.2,3870.6,4.55661677]
[1761948620153,0.00500001,3871.7,3870.6,4.55661677]
[1761948620154,0.9643,3870.7,3870.6,0.4835]
[1761948620389,0.5027,3870.7,3870.4,2.58369621]
[1761948620598,3.915562,3870.6,3867.4,0.002]
[1761948620753,3.915562,3870.6,3868.7,0.3481]
[1761948620754,0.405504,3870.2,3868.7,0.3481]
[1761948620955,7.518442,3870.1,3868.7,0.3481]
[1761948621154,7.67108,3869.9,3868.6,0.002]
[1761948621394,7.67108,3869.9,3868.7,2.58483627]
[1761948621691,1.469968,3869.8,3868.8,0.002]
[1761948621871,0.6567,3869.8,3868.8,0.002]
[1761948622056,0.4513,3869.7,3868.8,0.002]
[1761948622389,0.474,3868.9,3868.8,0.002]
[1761948622892,1.1085,3868.9,3868.8,0.002]
[1761948623491,0.6572,3868.9,3868.8,0.002]
[1761948624371,1.1085,3868.9,3868.8,0.002]
[1761948625104,0.474,3868.9,3868.8,0.002]
[1761948626208,0.40537622,3869.6,3868.8,0.6982]
[1761948626413,0.40537622,3869.6,3869.0,0.3481]
[1761948626797,0.40537622,3869.6,3869.5,0.4751]
[1761948627267,0.40537622,3869.6,3869.5,3.05941321]
[1761948627472,0.4513,3870.3,3869.5,3.05941321]
[1761948628074,0.4513,3870.3,3869.6,2.6100886]
[1761948628273,0.6464,3870.9,3869.6,2.6100886]
[1761948628274,1.20127536,3870.9,3869.6,5.44977625]
[1761948628473,0.4573,3870.7,3869.8,2.5840535]
[1761948628683,0.4573,3870.7,3869.9,0.02584046]
[1761948629586,0.4573,3870.7,3869.8,2.60994301]
[1761948630375,0.4573,3870.7,3869.8,0.02584112]
[1761948630594,0.4573,3870.7,3869.9,0.02584046]
[1761948630811,0.40528135,3870.5,3869.9,0.02584046]
[1761948631227,0.85658135,3870.5,3869.9,0.02584046]
[1761948631888,0.40528135,3870.5,3870.0,0.02583979]
[1761948632293,0.85658135,3870.5,3870.0,0.02583979]
[1761948632927,0.40528135,3870.5,3870.0,0.02583979]
[1761948633612,0.85658135,3870.5,3870.0,0.02583979]
[1761948633812,0.85658135,3870.5,3870.1,0.02583912]
[1761948634020,0.474,3870.2,3869.8,2.58406572]
[1761948634192,0.474,3870.2,3869.9,0.02584046]
[1761948635087,0.9253,3870.2,3869.9,0.02584046]
[1761948635394,0.9253,3870.2,3870.0,0.02583979]
[1761948635608,0.9253,3870.2,3869.8,2.60992635]
[1761948635827,0.40528135,3870.5,3869.9,2.58404376]
[1761948636036,0.40528135,3870.5,3870.0,0.02583979]
[1761948636408,0.40528135,3870.5,3870.4,0.3481]
[1761948636607,0.40528135,3870.5,3870.1,2.73674874]
[1761948637927,0.40528135,3870.5,3870.1,0.15283912]
[1761948638238,0.40528135,3870.5,3870.1,0.71948729]
[1761948638440,0.40528135,3870.5,3870.1,1.49617727]
[1761948638642,0.40528135,3870.5,3870.2,2.58383457]
[1761948639019,0.40528135,3870.5,3870.3,2.5837665]
[1761948640129,0.40528135,3870.5,3870.4,2.58371227]
[1761948640330,0.40528135,3870.5,3870.4,2.93181227]
[1761948640846,0.40528135,3870.5,3870.4,9.3621706]
[1761948641143,0.006,3870.7,3870.4,6.43035833]
[1761948641342,0.006,3870.7,3870.1,0.71948729]
[1761948641521,0.006,3870.7,3870.2,2.58378245]
[1761948641707,0.006,3870.7,3870.1,0.71948729]
[1761948641708,0.006,3870.7,3870.3,2.58376104]
[1761948642963,0.006,3870.7,3869.9,5.42593379]
[1761948642964,0.474,3870.4,3870.0,2.58397553]
[1761948643140,0.474,3870.4,3869.9,0.002]
[1761948643141,0.474,3870.4,3870.1,2.58389039]
[1761948643339,0.474,3870.4,3869.9,0.002]
[1761948643833,0.474,3870.4,3870.0,2.58392687]
[1761948644026,0.474,3870.0,3869.9,0.002]
[1761948644726,0.4513,3870.3,3869.9,0.002]
[1761948645325,0.474,3870.0,3869.9,0.002]
[1761948646068,0.9253,3870.0,3869.9,0.002]
[1761948646861,0.474,3870.0,3869.9,0.002]
[1761948647377,0.974,3870.0,3869.9,0.002]
[1761948651745,0.474,3870.0,3869.9,0.002]
[1761948652261,0.5,3870.3,3869.9,0.002]
[1761948654690,0.473,3870.0,3869.9,0.002]
[1761948655691,0.9052986,3870.3,3869.9,0.002]
[1761948655851,0.9052986,3870.3,3869.9,0.3501]
[1761948656049,0.4052986,3870.3,3869.9,0.002]
[1761948656268,0.5,3870.2,3869.9,0.002]
[1761948657154,0.4052986,3870.3,3869.9,0.002]
[1761948657383,0.001,3870.4,3870.0,4.81789065]
[1761948657682,0.501,3870.4,3870.0,4.81789065]
[1761948657859,0.501,3870.4,3870.0,7.40186933]
[1761948658059,0.001,3870.4,3870.0,7.40186933]
[1761948658483,0.001,3870.4,3870.1,2.58386043]
[1761948659261,0.001,3870.4,3870.1,0.127]
[1761948659468,0.001,3870.4,3870.0,4.81789065]
[1761948659780,0.501,3870.4,3870.0,4.81789065]
[1761948662395,0.501,3870.4,3869.9,0.002]
[1761948662692,0.473,3870.0,3869.9,0.002]
[1761948664464,0.973,3870.0,3869.9,0.002]
[1761948665186,0.473,3870.0,3869.9,0.002]
[1761948666021,0.5,3870.3,3869.9,0.002]
[1761948666286,0.1479455,3870.4,3869.9,4.81989065]
[1761948666513,0.6479455,3870.4,3869.9,4.81989065]
[1761948667507,0.6479455,3870.4,3869.9,0.002]
[1761948667714,0.66116494,3870.3,3869.9,0.002]
[1761948667909,0.473,3870.0,3869.9,0.002]
[1761948668428,0.973,3870.0,3869.9,0.002]
[1761948672619,0.473,3870.0,3869.9,0.002]
[1761948673118,1.05843517,3870.3,3869.9,0.3501]
[1761948673528,0.001,3870.4,3870.2,0.3481]
[1761948673701,0.001,3870.4,3870.3,0.3481]
[1761948673905,0.001,3870.4,3870.2,0.127]
[1761948674240,0.40626982,3870.4,3870.1,4.81789065]
[1761948676712,0.40626982,3870.4,3870.1,4.84372977]
[1761948677534,0.40626982,3870.4,3870.1,4.81789065]
[1761948678648,2.485081,3870.6,3870.3,0.127]
[1761948678854,0.03006518,3870.6,3870.5,7.74963617]
[1761948679154,0.006,3870.7,3870.5,7.74963617]
[1761948679155,0.006,3870.7,3870.6,2.58357877]
[1761948679376,0.001,3871.1,3871.0,2.5833118]
[1761948679513,0.001,3871.2,3871.1,2.58324507]
[1761948679717,0.001,3871.2,3871.1,3.26744507]
[1761948680729,0.001,3871.2,3871.1,3.29327752]
[1761948681053,0.001,3871.2,3871.1,5.10285911]
[1761948681724,0.001,3871.2,3871.1,5.07702666]
[1761948682746,0.001,3871.2,3871.1,9.55281731]
[1761948682965,0.001,3871.2,3871.1,6.96957224]
[1761948683259,0.001,3871.2,3871.1,7.74323572]
[1761948683418,0.001,3871.2,3871.1,2.92534507]
[1761948683754,0.001,3871.2,3871.1,3.26744507]
[1761948685957,0.001,3871.2,3870.5,6.07306763]
[1761948686146,0.001,3871.2,3871.0,2.58325453]
[1761948686459,0.001,3871.2,3871.0,0.25832545]
[1761948686962,0.4974,3871.1,3870.5,2.5835917]
[1761948687259,0.4974,3871.1,3870.6,2.58351816]
[1761948688066,0.4974,3871.1,3870.3,0.127]
[1761948688270,0.4974,3870.7,3870.4,2.58366256]
[1761948688454,0.4974,3870.7,3870.5,2.58362323]
[1761948688774,0.4974,3870.7,3870.3,0.82452778]
[1761948688976,0.001,3871.2,3871.1,2.58324507]
[1761948689177,0.001,3871.2,3871.1,9.12793721]
[1761948689363,0.001,3871.2,3871.1,9.47003721]
[1761948693652,0.001,3871.6,3871.4,2.92514489]
[1761948693872,0.001,3871.6,3871.5,3.29300795]
[1761948694151,0.001,3871.6,3871.5,3.88061323]
[1761948697283,0.001,3871.6,3871.5,4.28611723]
[1761948697581,0.001,3871.6,3871.5,3.51268345]
[1761948699286,0.001,3871.6,3871.5,3.53851323]
[1761948699962,0.001,3871.6,3871.5,3.17058345]